{"text_format":"3","workbook":"xlsx","n_sheets":1,"sheets":["Feuil1"],"not_rendered":{"macros":1,"defined_names":1},"read":"whole","date_system":"1900"}

{"sheet":"Feuil1","index":0,"n_rows":18,"n_cols":15,"rows_kept":18}
[{"$nulls":6},"Age","Carburant",null,"Séparateur",null,null,"DUPOND","DUPONT","DURAND"]
[null,null,"Nom","DUPONT",null,"ARTURO83",{"$f":"INDEX($G$10:$G$18,MATCH(1,($C$10:$C$18=$D$2)*($D$10:$D$18=$D$3)*($E$10:$E$18=$D$4),0))","v":57},{"$f":"INDEX($I$10:$I$18,MATCH(1,($C$10:$C$18=$D$2)*($D$10:$D$18=$D$3)*($E$10:$E$18=$D$4),0))","v":"Essence"},null,"/",null,null,"ARTUR","MARCEL","PATRICK"]
[null,null,"Prénom","MARCEL",null,"MarcelG",{"$f":"age_client(D2,D3,D4)","v":57},"?",{"$nulls":4},"Renault","Peugeot","AUDI"]
[null,null,"Voiture","AUDI",null,"anasecu",{"$f":"INDEX(Tableau1[Age],MATCH(D2&carconcat&D3&carconcat&D4,Tableau1[Concat],0))","v":57},{"$f":"INDEX(Tableau1[Carburant],MATCH(D2&carconcat&D3&carconcat&D4,Tableau1[Concat],0))","v":"Essence"}]
[]
[]
[]
[]
[null,null,"Nom","Prénom","Voiture","Courriel","Age","Concat","Carburant"]
[null,null,"DUPOND","ARTUR","Renault",{"$f":"Tableau1[[#This Row],[Nom]]&\",\"&Tableau1[[#This Row],[Prénom]]&\"@web,fr\"","v":"DUPOND,ARTUR@web,fr"},22,{"$f":"C10&carconcat&D10&carconcat&E10","v":"DUPOND/ARTUR/Renault"},"Diesel"]
[null,null,"DUPONT","MARCEL","Peugeot",{"$f":"Tableau1[[#This Row],[Nom]]&\",\"&Tableau1[[#This Row],[Prénom]]&\"@web,fr\"","v":"DUPONT,MARCEL@web,fr"},27,{"$f":"C11&carconcat&D11&carconcat&E11","v":"DUPONT/MARCEL/Peugeot"},"Essence"]
[null,null,"DURAND","PATRICK","AUDI",{"$f":"Tableau1[[#This Row],[Nom]]&\",\"&Tableau1[[#This Row],[Prénom]]&\"@web,fr\"","v":"DURAND,PATRICK@web,fr"},32,{"$f":"C12&carconcat&D12&carconcat&E12","v":"DURAND/PATRICK/AUDI"},"GPL"]
[null,null,"DUPOND","ARTUR","Peugeot",{"$f":"Tableau1[[#This Row],[Nom]]&\",\"&Tableau1[[#This Row],[Prénom]]&\"@web,fr\"","v":"DUPOND,ARTUR@web,fr"},37,{"$f":"C13&carconcat&D13&carconcat&E13","v":"DUPOND/ARTUR/Peugeot"},"Diesel"]
[null,null,"DUPONT","MARCEL","Renault",{"$f":"Tableau1[[#This Row],[Nom]]&\",\"&Tableau1[[#This Row],[Prénom]]&\"@web,fr\"","v":"DUPONT,MARCEL@web,fr"},42,{"$f":"C14&carconcat&D14&carconcat&E14","v":"DUPONT/MARCEL/Renault"},"Essence"]
[null,null,"DURAND","PATRICK","Peugeot",{"$f":"Tableau1[[#This Row],[Nom]]&\",\"&Tableau1[[#This Row],[Prénom]]&\"@web,fr\"","v":"DURAND,PATRICK@web,fr"},47,{"$f":"C15&carconcat&D15&carconcat&E15","v":"DURAND/PATRICK/Peugeot"},"GPL"]
[null,null,"DUPOND","ARTUR","Renault",{"$f":"Tableau1[[#This Row],[Nom]]&\",\"&Tableau1[[#This Row],[Prénom]]&\"@web,fr\"","v":"DUPOND,ARTUR@web,fr"},52,{"$f":"C16&carconcat&D16&carconcat&E16","v":"DUPOND/ARTUR/Renault"},"Diesel"]
[null,null,"DUPONT","MARCEL","AUDI",{"$f":"Tableau1[[#This Row],[Nom]]&\",\"&Tableau1[[#This Row],[Prénom]]&\"@web,fr\"","v":"DUPONT,MARCEL@web,fr"},57,{"$f":"C17&carconcat&D17&carconcat&E17","v":"DUPONT/MARCEL/AUDI"},"Essence"]
[null,null,"DURAND","PATRICK","AUDI",{"$f":"Tableau1[[#This Row],[Nom]]&\",\"&Tableau1[[#This Row],[Prénom]]&\"@web,fr\"","v":"DURAND,PATRICK@web,fr"},62,{"$f":"C18&carconcat&D18&carconcat&E18","v":"DURAND/PATRICK/AUDI"},"GPL"]